[Event "Titled Tuesday Blitz July 11 Late 2023"]
[White "Estrada Nieto, Julian"]
[Black "Goryachkina, Aleksandra"]
[WhiteFideId "5101018"]
[BlackFideId "4147103"]
[WhiteElo "2463"]
[BlackElo "2655"]
[Result "0-1"]
[Round "11"]
[TimeControl "180+2"]
[Date "2023.07.11"]
[WhiteClock "0:00:10"]
[BlackClock "0:00:04"]
[Board "56"]

1. e4 {[%clk 0:03:00]}  c5 {[%clk 0:03:00]} 2. Nf3 {[%clk 0:03:01]}  Nc6 {[%clk 0:02:59]} 3. Bb5 {[%clk 0:03:01]}  g6 {[%clk 0:02:58]} 4. Bxc6 {[%clk 0:02:58]}  bxc6 {[%clk 0:02:59]} 5. O-O {[%clk 0:02:57]}  Bg7 {[%clk 0:02:59]} 6. Re1 {[%clk 0:02:56]}  Qc7 {[%clk 0:02:55]} 7. c3 {[%clk 0:02:56]}  d6 {[%clk 0:02:47]} 8. h3 {[%clk 0:02:49]}  e5 {[%clk 0:02:38]} 9. d4 {[%clk 0:02:48]}  cxd4 {[%clk 0:02:39]} 10. cxd4 {[%clk 0:02:45]}  exd4 {[%clk 0:02:39]} 11. Nxd4 {[%clk 0:02:44]}  Ne7 {[%clk 0:02:38]} 12. Nc3 {[%clk 0:02:44]}  O-O {[%clk 0:02:36]} 13. Bf4 {[%clk 0:02:26]}  Rd8 {[%clk 0:02:21]} 14. Qd2 {[%clk 0:02:18]}  Qb6 {[%clk 0:02:13]} 15. Rad1 {[%clk 0:02:13]}  Bb7 {[%clk 0:01:57]} 16. Bg5 {[%clk 0:01:51]}  Rd7 {[%clk 0:01:54]} 17. Nf3 {[%clk 0:01:40]}  Re8 {[%clk 0:01:46]} 18. Bh6 {[%clk 0:01:28]}  Bh8 {[%clk 0:01:35]} 19. Re2 {[%clk 0:01:20]}  Ba6 {[%clk 0:01:24]} 20. Ree1 {[%clk 0:01:14]}  Bc4 {[%clk 0:01:23]} 21. b3 {[%clk 0:01:11]}  Be6 {[%clk 0:01:21]} 22. Na4 {[%clk 0:01:03]}  Qc7 {[%clk 0:01:14]} 23. Qf4 {[%clk 0:01:02]}  Nc8 {[%clk 0:00:55]} 24. Ng5 {[%clk 0:00:53]}  Qd8 {[%clk 0:00:55]} 25. Nxe6 {[%clk 0:00:45]}  Rxe6 {[%clk 0:00:53]} 26. Qg3 {[%clk 0:00:35]}  Qe8 {[%clk 0:00:51]} 27. Nc3 {[%clk 0:00:30]}  Nb6 {[%clk 0:00:46]} 28. Re3 {[%clk 0:00:22]}  Be5 {[%clk 0:00:42]} 29. Bf4 {[%clk 0:00:20]}  a5 {[%clk 0:00:25]} 30. Bxe5 {[%clk 0:00:19]}  Rxe5 {[%clk 0:00:24]} 31. Red3 {[%clk 0:00:20]}  d5 {[%clk 0:00:20]} 32. f4 {[%clk 0:00:15]}  Ree7 {[%clk 0:00:16]} 33. exd5 {[%clk 0:00:13]}  cxd5 {[%clk 0:00:12]} 34. Nxd5 {[%clk 0:00:12]}  Nxd5 {[%clk 0:00:09]} 35. Rxd5 {[%clk 0:00:12]}  Rxd5 {[%clk 0:00:09]} 36. Rxd5 {[%clk 0:00:13]}  a4 {[%clk 0:00:06]} 37. Qd3 {[%clk 0:00:12]}  Qc6 {[%clk 0:00:03]} 38. Rd8+ {[%clk 0:00:11]}  Kg7 {[%clk 0:00:04]} 39. Qd4+ {[%clk 0:00:11]}  f6 {[%clk 0:00:04]} 40. Kh2 {[%clk 0:00:10]}  Re2 {[%clk 0:00:02]} 41. Qd5 {[%clk 0:00:09]}  Qxd5 {[%clk 0:00:02]} 42. Rxd5 {[%clk 0:00:10]}  a3 {[%clk 0:00:02]} 43. Ra5 {[%clk 0:00:08]}  Rxa2 {[%clk 0:00:03]} 44. b4 {[%clk 0:00:09]}  Kf7 {[%clk 0:00:02]} 45. b5 {[%clk 0:00:09]}  Ke6 {[%clk 0:00:03]} 46. b6 {[%clk 0:00:09]}  Kd6 {[%clk 0:00:02]} 47. b7 {[%clk 0:00:08]}  Kc7 {[%clk 0:00:02]} 48. Ra7 {[%clk 0:00:08]}  Kb8 {[%clk 0:00:02]} 49. Ra4 {[%clk 0:00:06]}  Kxb7 {[%clk 0:00:02]} 50. h4 {[%clk 0:00:06]}  Kb6 {[%clk 0:00:03]} 51. Kg3 {[%clk 0:00:07]}  Kb5 {[%clk 0:00:03]} 52. Ra8 {[%clk 0:00:07]}  Ra1 {[%clk 0:00:03]} 53. Kg4 {[%clk 0:00:06]}  h5+ {[%clk 0:00:02]} 54. Kg3 {[%clk 0:00:06]}  Kc4 {[%clk 0:00:02]} 55. Rb8 {[%clk 0:00:05]}  Ra2 {[%clk 0:00:01]} 56. Rc8+ {[%clk 0:00:05]}  Kd4 {[%clk 0:00:01]} 57. Ra8 {[%clk 0:00:06]}  Ke4 {[%clk 0:00:02]} 58. Ra4+ {[%clk 0:00:06]}  Ke3 {[%clk 0:00:02]} 59. Ra5 {[%clk 0:00:06]}  Ra1 {[%clk 0:00:03]} 60. Ra4 {[%clk 0:00:06]}  a2 {[%clk 0:00:02]} 61. Ra6 {[%clk 0:00:06]}  Ke4 {[%clk 0:00:02]} 62. Re6+ {[%clk 0:00:06]}  Kf5 {[%clk 0:00:02]} 63. Ra6 {[%clk 0:00:07]}  Ke4 {[%clk 0:00:02]} 64. Ra4+ {[%clk 0:00:07]}  Kd3 {[%clk 0:00:03]} 65. Ra3+ {[%clk 0:00:07]}  Ke2 {[%clk 0:00:03]} 66. Ra6 {[%clk 0:00:08]}  Kf1 {[%clk 0:00:03]} 67. Ra5 {[%clk 0:00:06]}  Ke1 {[%clk 0:00:03]} 68. Ra3 {[%clk 0:00:06]}  Ke2 {[%clk 0:00:03]} 69. Ra4 {[%clk 0:00:06]}  Kd2 {[%clk 0:00:03]} 70. Ra6 {[%clk 0:00:06]}  Kc2 {[%clk 0:00:04]} 71. Rc6+ {[%clk 0:00:05]}  Kb3 {[%clk 0:00:04]} 72. Rb6+ {[%clk 0:00:06]}  Kc4 {[%clk 0:00:04]} 73. Ra6 {[%clk 0:00:06]}  Kb4 {[%clk 0:00:04]} 74. Ra8 {[%clk 0:00:06]}  Kc4 {[%clk 0:00:03]} 75. Rc8+ {[%clk 0:00:06]}  Kd5 {[%clk 0:00:03]} 76. Ra8 {[%clk 0:00:06]}  Ke6 {[%clk 0:00:04]} 77. Ra5 {[%clk 0:00:05]}  Kf7 {[%clk 0:00:03]} 78. Ra6 {[%clk 0:00:05]}  f5 {[%clk 0:00:03]} 79. Ra5 {[%clk 0:00:05]}  Ke7 {[%clk 0:00:03]} 80. Ra6 {[%clk 0:00:06]}  Kd7 {[%clk 0:00:04]} 81. Ra5 {[%clk 0:00:06]}  Kc6 {[%clk 0:00:04]} 82. Ra3 {[%clk 0:00:07]}  Kd5 {[%clk 0:00:04]} 83. Ra4 {[%clk 0:00:06]}  Kc5 {[%clk 0:00:03]} 84. Ra5+ {[%clk 0:00:07]}  Kb4 {[%clk 0:00:03]} 85. Ra8 {[%clk 0:00:08]}  Kb3 {[%clk 0:00:04]} 86. Rb8+ {[%clk 0:00:08]}  Kc3 {[%clk 0:00:04]} 87. Ra8 {[%clk 0:00:08]}  Kd3 {[%clk 0:00:05]} 88. Rd8+ {[%clk 0:00:08]}  Ke3 {[%clk 0:00:04]} 89. Ra8 {[%clk 0:00:09]}  Ke4 {[%clk 0:00:04]} 90. Ra4+ {[%clk 0:00:08]}  Kd3 {[%clk 0:00:04]} 91. Ra8 {[%clk 0:00:08]}  Ke3 {[%clk 0:00:05]} 92. Re8+ {[%clk 0:00:08]}  Kd2 {[%clk 0:00:05]} 93. Ra8 {[%clk 0:00:09]}  Kc2 {[%clk 0:00:03]} 94. Rc8+ {[%clk 0:00:09]}  Kd1 {[%clk 0:00:04]} 95. Ra8 {[%clk 0:00:09]}  Ke1 {[%clk 0:00:04]} 96. Re8+ {[%clk 0:00:10]}  Kf1 {[%clk 0:00:04]} 97. Ra8 {[%clk 0:00:10]}  Kg1 {[%clk 0:00:04]} 98. Ra7 {[%clk 0:00:10]}  Rb1 {[%clk 0:00:04]} 99. Rxa2 {[%clk 0:00:10]}  Rb3# {[%clk 0:00:04]} 0-1


[Site "https://www.chess.com"]

[Event "Titled Tuesday Blitz July 11 Late 2023"]
[White "Schnaider, Ilan"]
[Black "Bueno, Alfeu Junior Varela"]
[WhiteFideId "169013"]
[BlackFideId "2108879"]
[WhiteElo "2630"]
[BlackElo "2447"]
[Result "1-0"]
[Round "11"]
[TimeControl "180+2"]
[Date "2023.07.11"]
[WhiteClock "0:00:36"]
[BlackClock "0:00:08"]
[Board "58"]

1. e4 {[%clk 0:02:42]}  e6 {[%clk 0:02:59]} 2. d4 {[%clk 0:02:42]}  d5 {[%clk 0:02:59]} 3. Nd2 {[%clk 0:02:43]}  Nf6 {[%clk 0:02:59]} 4. e5 {[%clk 0:02:44]}  Nfd7 {[%clk 0:03:00]} 5. Bd3 {[%clk 0:02:45]}  c5 {[%clk 0:03:01]} 6. c3 {[%clk 0:02:45]}  Nc6 {[%clk 0:03:01]} 7. Ne2 {[%clk 0:02:46]}  cxd4 {[%clk 0:03:02]} 8. cxd4 {[%clk 0:02:47]}  f6 {[%clk 0:03:03]} 9. exf6 {[%clk 0:02:48]}  Nxf6 {[%clk 0:03:03]} 10. Nf3 {[%clk 0:02:49]}  Bd6 {[%clk 0:03:04]} 11. O-O {[%clk 0:02:49]}  Qc7 {[%clk 0:03:04]} 12. Bg5 {[%clk 0:02:49]}  O-O {[%clk 0:03:05]} 13. Bh4 {[%clk 0:02:50]}  Nh5 {[%clk 0:03:05]} 14. Bg3 {[%clk 0:02:48]}  Nxg3 {[%clk 0:03:03]} 15. hxg3 {[%clk 0:02:49]}  g6 {[%clk 0:03:02]} 16. Rc1 {[%clk 0:02:48]}  Qg7 {[%clk 0:03:01]} 17. Qd2 {[%clk 0:02:47]}  Bc7 {[%clk 0:03:01]} 18. Nf4 {[%clk 0:02:47]}  Bb6 {[%clk 0:03:00]} 19. Ne2 {[%clk 0:02:22]}  a6 {[%clk 0:02:50]} 20. Bb1 {[%clk 0:02:19]}  Bd7 {[%clk 0:02:49]} 21. Rfe1 {[%clk 0:02:18]}  Rae8 {[%clk 0:02:36]} 22. a3 {[%clk 0:02:15]}  Na5 {[%clk 0:02:24]} 23. Ne5 {[%clk 0:02:13]}  Nb3 {[%clk 0:02:20]} 24. Qb4 {[%clk 0:02:10]}  Nxc1 {[%clk 0:02:19]} 25. Rxc1 {[%clk 0:02:10]}  Bb5 {[%clk 0:02:05]} 26. Nf4 {[%clk 0:02:04]}  Qe7 {[%clk 0:01:52]} 27. Qd2 {[%clk 0:01:55]}  Rc8 {[%clk 0:01:50]} 28. Re1 {[%clk 0:01:52]}  Bd7 {[%clk 0:01:11]} 29. Qd3 {[%clk 0:01:12]}  Bb5 {[%clk 0:01:06]} 30. Qe3 {[%clk 0:01:09]}  Qd6 {[%clk 0:00:59]} 31. Nfxg6 {[%clk 0:00:48]}  hxg6 {[%clk 0:00:52]} 32. Qh6 {[%clk 0:00:48]}  Qe7 {[%clk 0:00:35]} 33. Qxg6+ {[%clk 0:00:48]}  Kh8 {[%clk 0:00:29]} 34. Qh5+ {[%clk 0:00:40]}  Kg8 {[%clk 0:00:27]} 35. Qg4+ {[%clk 0:00:38]}  Qg7 {[%clk 0:00:19]} 36. Qxe6+ {[%clk 0:00:39]}  Rf7 {[%clk 0:00:10]} 37. Qxc8+ {[%clk 0:00:38]}  Qf8 {[%clk 0:00:09]} 38. Qg4+ {[%clk 0:00:36]}  Rg7 {[%clk 0:00:09]} 39. Qe6+ {[%clk 0:00:36]}  Kh8 {[%clk 0:00:09]} 40. Ng6+ {[%clk 0:00:36]}  Rxg6 {[%clk 0:00:09]} 41. Qxg6 {[%clk 0:00:36]}  Bxd4 {[%clk 0:00:08]} 42. Qh7# {[%clk 0:00:36]} 1-0


[Site "https://www.chess.com"]

[Event "Titled Tuesday Blitz July 11 Late 2023"]
[White "Di Berardino, Diego Rafael"]
[Black "Rubio Tent, Francisco"]
[WhiteFideId "2105446"]
[BlackFideId "2238233"]
[WhiteElo "2606"]
[BlackElo "2446"]
[Result "1-0"]
[Round "11"]
[TimeControl "180+2"]
[Date "2023.07.11"]
[WhiteClock "0:01:10"]
[BlackClock "0:00:14"]
[Board "59"]

1. e4 {[%clk 0:02:56]}  c6 {[%clk 0:02:59]} 2. d4 {[%clk 0:02:55]}  d5 {[%clk 0:02:59]} 3. exd5 {[%clk 0:02:56]}  cxd5 {[%clk 0:03:00]} 4. c4 {[%clk 0:02:57]}  Nf6 {[%clk 0:02:57]} 5. Nc3 {[%clk 0:02:57]}  Bf5 {[%clk 0:02:56]} 6. Qb3 {[%clk 0:02:45]}  Qb6 {[%clk 0:02:54]} 7. cxd5 {[%clk 0:02:39]}  Qxb3 {[%clk 0:02:53]} 8. axb3 {[%clk 0:02:40]}  e6 {[%clk 0:02:46]} 9. dxe6 {[%clk 0:02:39]}  Bxe6 {[%clk 0:02:46]} 10. Bc4 {[%clk 0:02:38]}  Bxc4 {[%clk 0:02:46]} 11. bxc4 {[%clk 0:02:38]}  Bb4 {[%clk 0:02:46]} 12. Ne2 {[%clk 0:02:29]}  Ne4 {[%clk 0:02:42]} 13. O-O {[%clk 0:02:28]}  Nxc3 {[%clk 0:02:40]} 14. Nxc3 {[%clk 0:02:20]}  Bxc3 {[%clk 0:02:40]} 15. bxc3 {[%clk 0:02:20]}  O-O {[%clk 0:02:40]} 16. c5 {[%clk 0:02:14]}  Nc6 {[%clk 0:02:40]} 17. Bf4 {[%clk 0:02:12]}  Rad8 {[%clk 0:02:21]} 18. Rfb1 {[%clk 0:02:09]}  Rd7 {[%clk 0:02:10]} 19. Bd6 {[%clk 0:02:08]}  Re8 {[%clk 0:02:01]} 20. d5 {[%clk 0:02:07]}  Ne7 {[%clk 0:01:22]} 21. Re1 {[%clk 0:02:00]}  Kf8 {[%clk 0:01:04]} 22. Rxa7 {[%clk 0:01:30]}  f6 {[%clk 0:00:53]} 23. Kf1 {[%clk 0:01:18]}  Kf7 {[%clk 0:00:51]} 24. Rxe7+ {[%clk 0:01:15]}  Rexe7 {[%clk 0:00:48]} 25. Bxe7 {[%clk 0:01:14]}  Rxe7 {[%clk 0:00:49]} 26. d6 {[%clk 0:01:10]}  Rd7 {[%clk 0:00:14]} 27. c6 {[%clk 0:01:10]} 1-0


[Site "https://www.chess.com"]

[Event "Titled Tuesday Blitz July 11 Late 2023"]
[White "Banzea, Alexandru-Bogdan"]
[Black "Rios Escobar, Adan"]
[WhiteFideId "1232622"]
[BlackFideId "3403645"]
[WhiteElo "2592"]
[BlackElo "2438"]
[Result "1-0"]
[Round "11"]
[TimeControl "180+2"]
[Date "2023.07.11"]
[WhiteClock "0:00:08"]
[BlackClock "0:00:18"]
[Board "61"]

1. d4 {[%clk 0:00:48]}  Nf6 {[%clk 0:02:52]} 2. Nc3 {[%clk 0:00:48]}  g6 {[%clk 0:02:53]} 3. Bf4 {[%clk 0:00:48]}  d5 {[%clk 0:02:43]} 4. e3 {[%clk 0:00:47]}  c6 {[%clk 0:02:42]} 5. h4 {[%clk 0:00:47]}  Nbd7 {[%clk 0:02:37]} 6. Nf3 {[%clk 0:00:45]}  Bg7 {[%clk 0:02:35]} 7. Be2 {[%clk 0:00:46]}  b5 {[%clk 0:02:28]} 8. Ne5 {[%clk 0:00:46]}  Nxe5 {[%clk 0:02:28]} 9. Bxe5 {[%clk 0:00:46]}  a5 {[%clk 0:02:24]} 10. h5 {[%clk 0:00:45]}  Rg8 {[%clk 0:01:59]} 11. hxg6 {[%clk 0:00:39]}  hxg6 {[%clk 0:01:59]} 12. f3 {[%clk 0:00:31]}  Be6 {[%clk 0:01:57]} 13. Qd2 {[%clk 0:00:30]}  a4 {[%clk 0:01:48]} 14. a3 {[%clk 0:00:28]}  Qb6 {[%clk 0:01:47]} 15. Nd1 {[%clk 0:00:23]}  O-O-O {[%clk 0:01:33]} 16. Nf2 {[%clk 0:00:21]}  Nd7 {[%clk 0:01:29]} 17. Bxg7 {[%clk 0:00:20]}  Rxg7 {[%clk 0:01:30]} 18. b3 {[%clk 0:00:20]}  c5 {[%clk 0:00:53]} 19. bxa4 {[%clk 0:00:19]}  bxa4 {[%clk 0:00:53]} 20. Qc3 {[%clk 0:00:13]}  Kc7 {[%clk 0:00:31]} 21. dxc5 {[%clk 0:00:12]}  Qxc5 {[%clk 0:00:29]} 22. Qxg7 {[%clk 0:00:13]}  Qxe3 {[%clk 0:00:26]} 23. Qb2 {[%clk 0:00:08]}  Rb8 {[%clk 0:00:24]} 24. Qc1 {[%clk 0:00:06]}  Qc3+ {[%clk 0:00:23]} 25. Kf1 {[%clk 0:00:07]}  Ne5 {[%clk 0:00:20]} 26. Nd3 {[%clk 0:00:07]}  Nc4 {[%clk 0:00:20]} 27. Qf4+ {[%clk 0:00:06]}  Kc8 {[%clk 0:00:19]} 28. Rd1 {[%clk 0:00:03]}  Qxa3 {[%clk 0:00:16]} 29. Rh8+ {[%clk 0:00:02]}  Kd7 {[%clk 0:00:14]} 30. Rxb8 {[%clk 0:00:02]}  Qd6 {[%clk 0:00:14]} 31. Qxd6+ {[%clk 0:00:02]}  Nxd6 {[%clk 0:00:15]} 32. Ra8 {[%clk 0:00:03]}  Kc6 {[%clk 0:00:16]} 33. Rxa4 {[%clk 0:00:03]}  d4 {[%clk 0:00:17]} 34. Rxd4 {[%clk 0:00:02]}  Nb5 {[%clk 0:00:18]} 35. Rb4 {[%clk 0:00:02]}  Nd6 {[%clk 0:00:17]} 36. Rdb1 {[%clk 0:00:03]}  Kd7 {[%clk 0:00:17]} 37. Rb7+ {[%clk 0:00:03]}  Kc6 {[%clk 0:00:17]} 38. R7b6+ {[%clk 0:00:04]}  Kc7 {[%clk 0:00:17]} 39. Rxd6 {[%clk 0:00:05]}  Kxd6 {[%clk 0:00:18]} 40. Kf2 {[%clk 0:00:05]}  Kd5 {[%clk 0:00:18]} 41. Rc1 {[%clk 0:00:06]}  Kc4 {[%clk 0:00:18]} 42. Ke3 {[%clk 0:00:07]}  Kc3 {[%clk 0:00:18]} 43. Rd1 {[%clk 0:00:07]}  f5 {[%clk 0:00:19]} 44. f4 {[%clk 0:00:07]}  Bc8 {[%clk 0:00:18]} 45. Ne5 {[%clk 0:00:08]}  g5 {[%clk 0:00:18]} 46. fxg5 {[%clk 0:00:08]}  e6 {[%clk 0:00:18]} 47. g6 {[%clk 0:00:07]}  f4+ {[%clk 0:00:18]} 48. Kxf4 {[%clk 0:00:07]}  Bb7 {[%clk 0:00:19]} 49. g7 {[%clk 0:00:07]}  Bxg2 {[%clk 0:00:20]} 50. g8=Q {[%clk 0:00:08]}  Bd5 {[%clk 0:00:21]} 51. Qg7 {[%clk 0:00:08]}  Bc4 {[%clk 0:00:20]} 52. Nxc4+ {[%clk 0:00:08]}  Kb4 {[%clk 0:00:18]} 53. Qb2+ {[%clk 0:00:08]}  Kc5 {[%clk 0:00:18]} 54. Qb6# {[%clk 0:00:08]} 1-0


[Site "https://www.chess.com"]

[Event "Titled Tuesday Blitz July 11 Late 2023"]
[White "Grinev, Valeriy"]
[Black "Mikhalsky, Vladimir"]
[WhiteFideId "14117517"]
[BlackFideId "14144352"]
[WhiteElo "2568"]
[BlackElo "2407"]
[Result "0-1"]
[Round "11"]
[TimeControl "180+2"]
[Date "2023.07.11"]
[WhiteClock "0:01:43"]
[BlackClock "0:01:28"]
[Board "63"]

1. e4 {[%clk 0:02:29]}  g6 {[%clk 0:02:56]} 2. d4 {[%clk 0:02:28]}  Bg7 {[%clk 0:02:56]} 3. c4 {[%clk 0:02:27]}  c5 {[%clk 0:02:55]} 4. d5 {[%clk 0:02:27]}  e6 {[%clk 0:02:53]} 5. Nc3 {[%clk 0:02:26]}  d6 {[%clk 0:02:51]} 6. f4 {[%clk 0:02:24]}  Ne7 {[%clk 0:02:47]} 7. Nf3 {[%clk 0:02:25]}  exd5 {[%clk 0:02:46]} 8. cxd5 {[%clk 0:02:22]}  O-O {[%clk 0:02:45]} 9. a4 {[%clk 0:02:23]}  Bg4 {[%clk 0:02:44]} 10. Be2 {[%clk 0:02:23]}  Bxf3 {[%clk 0:02:31]} 11. Bxf3 {[%clk 0:02:22]}  f5 {[%clk 0:02:24]} 12. O-O {[%clk 0:02:16]}  Nd7 {[%clk 0:02:24]} 13. e5 {[%clk 0:02:05]}  dxe5 {[%clk 0:02:17]} 14. d6 {[%clk 0:02:06]}  Nc6 {[%clk 0:02:13]} 15. fxe5 {[%clk 0:02:05]}  Ndxe5 {[%clk 0:02:12]} 16. Qd5+ {[%clk 0:02:06]}  Kh8 {[%clk 0:02:11]} 17. Qxc5 {[%clk 0:02:05]}  Nxf3+ {[%clk 0:02:06]} 18. gxf3 {[%clk 0:02:03]}  Bd4+ {[%clk 0:02:05]} 19. Be3 {[%clk 0:01:56]}  Bxc5 {[%clk 0:02:04]} 20. Bxc5 {[%clk 0:01:57]}  b6 {[%clk 0:02:02]} 21. Ba3 {[%clk 0:01:54]}  Nd4 {[%clk 0:01:52]} 22. Rad1 {[%clk 0:01:54]}  Nc2 {[%clk 0:01:50]} 23. Nb5 {[%clk 0:01:48]}  Nxa3 {[%clk 0:01:49]} 24. bxa3 {[%clk 0:01:49]}  Qg5+ {[%clk 0:01:43]} 25. Kh1 {[%clk 0:01:48]}  Rf7 {[%clk 0:01:37]} 26. d7 {[%clk 0:01:48]}  Rd8 {[%clk 0:01:36]} 27. Nxa7 {[%clk 0:01:43]}  Rfxd7 {[%clk 0:01:35]} 28. Rxd7 {[%clk 0:01:43]}  Rxd7 {[%clk 0:01:34]} 29. Nb5 {[%clk 0:01:44]}  Rd2 {[%clk 0:01:32]} 30. Rg1 {[%clk 0:01:42]}  Qh5 {[%clk 0:01:30]} 31. Nd4 {[%clk 0:01:43]}  Rxh2# {[%clk 0:01:28]} 0-1


[Site "https://www.chess.com"]

[Event "Titled Tuesday Blitz July 11 Late 2023"]
[White "only_strong_moves"]
[Black "Harriott, Tyrell"]
[BlackFideId "2086484"]
[WhiteElo "2535"]
[BlackElo "2405"]
[Result "1-0"]
[Round "11"]
[TimeControl "180+2"]
[Date "2023.07.11"]
[WhiteClock "0:01:58"]
[BlackClock "0:00:47"]
[Board "64"]

1. d4 {[%clk 0:02:55]}  e6 {[%clk 0:02:59]} 2. c4 {[%clk 0:02:55]}  d5 {[%clk 0:03:00]} 3. Nf3 {[%clk 0:02:56]}  c6 {[%clk 0:02:59]} 4. Nc3 {[%clk 0:02:56]}  f5 {[%clk 0:02:59]} 5. g3 {[%clk 0:02:53]}  Bd6 {[%clk 0:02:59]} 6. Bg2 {[%clk 0:02:53]}  Nf6 {[%clk 0:02:57]} 7. O-O {[%clk 0:02:54]}  O-O {[%clk 0:02:57]} 8. c5 {[%clk 0:02:54]}  Bc7 {[%clk 0:02:56]} 9. b4 {[%clk 0:02:53]}  Nbd7 {[%clk 0:02:54]} 10. Bf4 {[%clk 0:02:53]}  Re8 {[%clk 0:02:53]} 11. Ne5 {[%clk 0:02:48]}  Bxe5 {[%clk 0:02:45]} 12. Bxe5 {[%clk 0:02:46]}  Nxe5 {[%clk 0:02:40]} 13. dxe5 {[%clk 0:02:47]}  Ne4 {[%clk 0:02:38]} 14. Nxe4 {[%clk 0:02:42]}  dxe4 {[%clk 0:02:27]} 15. Qxd8 {[%clk 0:02:37]}  Rxd8 {[%clk 0:02:26]} 16. Rad1 {[%clk 0:02:38]}  Re8 {[%clk 0:02:25]} 17. f3 {[%clk 0:02:33]}  exf3 {[%clk 0:02:14]} 18. Bxf3 {[%clk 0:02:34]}  Kf8 {[%clk 0:02:13]} 19. e4 {[%clk 0:02:32]}  g6 {[%clk 0:02:11]} 20. Rd6 {[%clk 0:02:31]}  Ke7 {[%clk 0:02:10]} 21. exf5 {[%clk 0:02:30]}  exf5 {[%clk 0:02:09]} 22. a4 {[%clk 0:02:17]}  Be6 {[%clk 0:02:08]} 23. b5 {[%clk 0:02:18]}  cxb5 {[%clk 0:01:54]} 24. axb5 {[%clk 0:02:19]}  Rab8 {[%clk 0:01:53]} 25. Ra1 {[%clk 0:02:14]}  Rec8 {[%clk 0:01:45]} 26. c6 {[%clk 0:02:11]}  a6 {[%clk 0:01:37]} 27. cxb7 {[%clk 0:02:05]}  Rc3 {[%clk 0:01:18]} 28. bxa6 {[%clk 0:02:02]}  Rxf3 {[%clk 0:01:15]} 29. a7 {[%clk 0:02:01]}  Rxb7 {[%clk 0:01:10]} 30. a8=Q {[%clk 0:02:01]}  Rd7 {[%clk 0:01:09]} 31. Rxd7+ {[%clk 0:01:59]}  Bxd7 {[%clk 0:01:10]} 32. Qxf3 {[%clk 0:01:59]}  Be6 {[%clk 0:01:07]} 33. Ra7+ {[%clk 0:01:57]}  Kf8 {[%clk 0:00:47]} 34. Qa8+ {[%clk 0:01:58]} 1-0


[Site "https://www.chess.com"]

[Event "Titled Tuesday Blitz July 11 Late 2023"]
[White "Bogaudinov, Rushan"]
[Black "Graif, William"]
[WhiteFideId "4129288"]
[BlackFideId "2609835"]
[WhiteElo "2389"]
[BlackElo "2530"]
[Result "0-1"]
[Round "11"]
[TimeControl "180+2"]
[Date "2023.07.11"]
[WhiteClock "0:00:03"]
[BlackClock "0:00:07"]
[Board "65"]

1. d4 {[%clk 0:01:53]}  Nf6 {[%clk 0:02:58]} 2. Nf3 {[%clk 0:01:53]}  d5 {[%clk 0:02:55]} 3. c4 {[%clk 0:01:51]}  e6 {[%clk 0:02:55]} 4. e3 {[%clk 0:01:51]}  a6 {[%clk 0:02:43]} 5. cxd5 {[%clk 0:01:46]}  exd5 {[%clk 0:02:43]} 6. Nc3 {[%clk 0:01:46]}  Bf5 {[%clk 0:02:26]} 7. Be2 {[%clk 0:01:44]}  c6 {[%clk 0:02:22]} 8. O-O {[%clk 0:01:43]}  Nbd7 {[%clk 0:02:20]} 9. a3 {[%clk 0:01:32]}  Bd6 {[%clk 0:02:18]} 10. b4 {[%clk 0:01:32]}  Ne4 {[%clk 0:02:13]} 11. Nxe4 {[%clk 0:01:30]}  dxe4 {[%clk 0:01:28]} 12. Nd2 {[%clk 0:01:28]}  Qh4 {[%clk 0:01:23]} 13. f4 {[%clk 0:01:14]}  Nf6 {[%clk 0:01:18]} 14. g3 {[%clk 0:01:12]}  Qh3 {[%clk 0:01:07]} 15. Rf2 {[%clk 0:01:10]}  h5 {[%clk 0:00:38]} 16. Bf1 {[%clk 0:01:07]}  Qg4 {[%clk 0:00:38]} 17. Qxg4 {[%clk 0:00:41]}  hxg4 {[%clk 0:00:35]} 18. Nc4 {[%clk 0:00:39]}  Bc7 {[%clk 0:00:33]} 19. Ne5 {[%clk 0:00:34]}  Nd5 {[%clk 0:00:23]} 20. Bc4 {[%clk 0:00:34]}  f6 {[%clk 0:00:19]} 21. Bd2 {[%clk 0:00:28]}  fxe5 {[%clk 0:00:18]} 22. fxe5 {[%clk 0:00:29]}  g6 {[%clk 0:00:17]} 23. Raf1 {[%clk 0:00:27]}  Ke7 {[%clk 0:00:16]} 24. a4 {[%clk 0:00:24]}  b5 {[%clk 0:00:14]} 25. Bb3 {[%clk 0:00:22]}  Rhf8 {[%clk 0:00:12]} 26. a5 {[%clk 0:00:22]}  Be6 {[%clk 0:00:11]} 27. Rxf8 {[%clk 0:00:20]}  Rxf8 {[%clk 0:00:12]} 28. Rxf8 {[%clk 0:00:19]}  Kxf8 {[%clk 0:00:13]} 29. Kf2 {[%clk 0:00:18]}  Bd8 {[%clk 0:00:09]} 30. Bxd5 {[%clk 0:00:17]}  Bxd5 {[%clk 0:00:09]} 31. Bc3 {[%clk 0:00:16]}  Kf7 {[%clk 0:00:09]} 32. Kg2 {[%clk 0:00:15]}  Be7 {[%clk 0:00:08]} 33. Bd2 {[%clk 0:00:14]}  Ke6 {[%clk 0:00:08]} 34. Be1 {[%clk 0:00:13]}  Bc4 {[%clk 0:00:08]} 35. h3 {[%clk 0:00:13]}  Be2 {[%clk 0:00:07]} 36. h4 {[%clk 0:00:12]}  Kd5 {[%clk 0:00:07]} 37. Kf2 {[%clk 0:00:11]}  Bf3 {[%clk 0:00:06]} 38. Bd2 {[%clk 0:00:11]}  Kc4 {[%clk 0:00:06]} 39. Ke1 {[%clk 0:00:11]}  Kd3 {[%clk 0:00:04]} 40. e6 {[%clk 0:00:07]}  Be2 {[%clk 0:00:04]} 41. Bc1 {[%clk 0:00:03]}  Bxb4+ {[%clk 0:00:03]} 42. Kf2 {[%clk 0:00:04]}  Be7 {[%clk 0:00:04]} 43. Bb2 {[%clk 0:00:04]}  Bf3 {[%clk 0:00:04]} 44. Bc1 {[%clk 0:00:03]}  Kc2 {[%clk 0:00:04]} 45. Ba3 {[%clk 0:00:02]}  Bxa3 {[%clk 0:00:04]} 46. h5 {[%clk 0:00:03]}  Be7 {[%clk 0:00:05]} 47. Kg1 {[%clk 0:00:02]}  gxh5 {[%clk 0:00:05]} 48. Kh2 {[%clk 0:00:01]}  b4 {[%clk 0:00:06]} 49. d5 {[%clk 0:00:02]}  cxd5 {[%clk 0:00:07]} 50. Kg1 {[%clk 0:00:01]}  b3 {[%clk 0:00:08]} 51. Kh2 {[%clk 0:00:01]}  b2 {[%clk 0:00:09]} 52. Kg1 {[%clk 0:00:02]}  b1=Q+ {[%clk 0:00:08]} 53. Kf2 {[%clk 0:00:03]}  d4 {[%clk 0:00:07]} 54. exd4 {[%clk 0:00:03]}  Kd2 {[%clk 0:00:06]} 55. d5 {[%clk 0:00:03]}  Qe1# {[%clk 0:00:07]} 0-1


[Site "https://www.chess.com"]